{"text_format":"1","workbook":"xlsx","n_sheets":1,"sheets":["Aufforstungen"],"not_rendered":{"charts":0,"images":0,"macros":1,"external_links":0,"defined_names":1,"comments":1,"pivot_tables":0},"unopened":[],"bounds":{"document_bytes":16777216,"sheet_cells":100000,"rows_first":2000,"rows_last":500,"rows_between":2000,"halvings":0,"cell_chars":16384,"cell_head_chars":4096},"cells_cut":0,"cells_raw":0,"read":"whole","date_system":"1900"}

{"sheet":"Aufforstungen","index":0,"n_rows":211,"n_cols":19,"rows_kept":211,"cut":false,"hidden":false,"merged":[[141,2,141,6],[141,7,141,8],[141,12,141,16],[141,17,141,18],[142,2,142,6],[142,7,142,8],[142,12,142,16],[142,17,142,18],[108,20,108,23],[83,1,83,3],[84,1,84,3],[84,11,84,13],[83,11,83,13],[82,11,82,13],[68,4,68,5],[69,4,69,5],[70,4,70,5],[70,14,70,15],[89,11,89,18],[91,1,91,8],[69,2,69,3],[70,2,70,3],[68,2,68,3],[91,11,91,18],[84,6,84,7],[106,20,106,23],[65,2,65,3],[66,2,66,3],[67,2,67,3],[66,12,66,13],[64,4,64,5],[70,12,70,13],[83,16,83,17],[82,6,82,7],[73,14,73,17],[73,4,73,7],[81,1,81,3],[81,11,81,13],[82,1,82,3],[64,14,64,15],[137,7,137,8],[137,12,137,16],[137,17,137,18],[138,2,138,6],[65,4,65,5],[66,4,66,5],[67,4,67,5],[63,12,63,13],[64,12,64,13],[74,0,74,9],[75,0,75,9],[63,4,63,5],[63,14,63,15],[161,12,193,18],[198,6,198,8],[166,2,166,4],[152,2,153,8],[65,14,65,15],[107,1,107,8],[98,2,98,8],[102,2,102,8],[104,7,104,8],[114,7,114,8],[170,2,171,8],[105,4,105,7],[94,16,94,17],[149,2,149,8],[107,11,107,18],[121,2,121,8],[130,2,130,8],[131,2,131,4],[66,14,66,15],[114,14,114,15],[110,17,110,18],[114,4,114,5],[117,7,117,8],[137,2,137,6],[154,5,154,8],[96,1,96,8],[105,14,105,17],[104,17,104,18],[208,6,208,8],[203,6,203,8],[203,12,203,14],[164,2,164,8],[175,2,176,8],[167,2,167,8],[168,2,168,4],[162,2,162,8],[150,2,150,8],[169,2,169,8],[163,2,163,8],[152,12,153,18],[154,12,154,14],[154,15,154,18],[156,4,156,7],[188,2,188,8],[191,2,191,8],[180,2,185,8],[156,14,156,17],[150,12,150,18],[26,5,26,8],[24,4,24,5],[35,16,35,17],[35,1,36,5],[31,1,31,8],[31,11,31,18],[197,12,197,14],[197,16,197,18],[114,17,114,18],[110,4,110,5],[110,7,110,8],[154,2,154,4],[67,14,67,15],[68,14,68,15],[69,14,69,15],[117,17,117,18],[110,14,110,15],[149,12,149,18],[92,6,92,7],[94,6,94,7],[81,6,81,7],[79,1,79,8],[79,11,79,18],[67,12,67,13],[41,16,41,17],[41,11,42,15],[35,11,36,15],[38,16,38,17],[60,5,61,8],[45,1,45,8],[3,6,3,8],[3,16,3,18],[4,3,4,8],[4,13,4,18],[5,5,5,6],[5,7,5,8],[6,1,6,2],[43,1,43,8],[43,11,43,18],[41,1,42,5],[41,6,41,7],[8,1,8,6],[19,1,19,8],[19,11,19,18],[14,11,14,18],[14,1,14,8],[38,6,38,7],[35,6,35,7],[92,16,92,17],[57,1,58,3],[50,7,50,8],[57,11,58,13],[60,11,61,13],[60,15,61,18],[30,15,30,18],[12,1,13,6],[38,1,39,5],[38,11,39,15],[24,17,24,18],[24,7,24,8],[24,14,24,15],[26,1,28,4],[60,1,61,3],[52,14,52,17],[55,1,55,8],[55,11,55,18],[57,5,58,8],[57,15,58,18],[28,15,28,18],[30,5,30,8],[28,11,28,14],[28,5,28,8],[46,1,46,8],[53,1,53,8],[81,16,81,17],[52,4,52,8],[87,4,87,7],[87,14,87,17],[76,0,76,9],[84,16,84,17],[83,6,83,7],[82,16,82,17],[65,12,65,13],[53,11,53,18],[47,1,47,8],[47,11,47,18],[63,2,63,3],[64,2,64,3],[68,12,68,13],[69,12,69,13],[138,7,138,8],[138,12,138,16],[138,17,138,18],[139,2,139,6],[139,7,139,8],[139,12,139,16],[139,17,139,18],[140,2,140,6],[140,7,140,8],[140,12,140,16],[140,17,140,18]]}
[null,"    Erstaufforstungen"]
[]
[]
[null,"  zum Antrag vom",null,null,null,null,null,null,null,null,null,"  zum Verwendungsnachweis vom"]
[null,"  Antragsteller",null,null,null,null,null,null,null,null,null,"  Antragsteller",null,{"$f":"IF(D5=\"\",\"\",D5)","v":""}]
[]
[null,null,null,null,null,null,null,"bitte ankreuzen",null,null,null,null,null,null,null,"ja",null,"nein"]
[]
[null,"  Nr. 5.1.1  Erstaufforstung und Saat (...)",null,null,null,null,null,null,null,null,null,{"$f":"IF($H9=\"x\",\"  Maßnahme durchgeführt?\",\"\")","v":""}]
[]
[null,"  Nr. 5.1.2  Nachbesserung geförderten Kulturen",null,null,null,null,null,null,null,null,null,{"$f":"IF($H11=\"x\",\"  Maßnahme durchgeführt?\",\"\")","v":""}]
[]
[null,"  Nr. 5.1.4  Schutz der Erstaufforstungen und\n  Naturverjüngungen bei Erstaufforstung"]
[null,null,null,null,null,null,null,null,null,null,null,{"$f":"IF($H14=\"x\",\"  Maßnahme durchgeführt?\",\"\")","v":""}]
[]
[]
[null,"  Aufforstung",null,null,null,{"$f":"IF(H9=\"x\",\"x\",IF(H11=\"x\",\"x\",\"\"))","v":""},"  ja",{"$f":"IF(F17=\"x\",\"\",\"x\")","v":"x"},"  nein"]
[]
[null,"  Förderung in Schutzgebiet (Nr. 1.3.1)?",null,null,null,null,"  ja",null,"  nein"]
[]
[]
[null,"  I. ANTRAGSDATEN",null,null,null,null,null,null,null,null,null,"  I. VERWENDUNGSNACHWEISDATEN"]
[null,"  (Art, Ort, Umfang, Durchf.-Zeitraum, Flächenermittlungsverfahren)",null,null,null,null,null,null,null,null,null,"  (Art, Ort, Umfang, Durchf.-Zeitraum, Flächenermittlungsverfahren)"]
[]
[null,"  Durchf.-Zeitraum von",null,null,null,null,"bis …",null,null,null,null,"  Durchf.-Zeitraum von",null,null,null,null,"bis …"]
[]
[null,"  Gemarkung,\n  Flur, Flurstück,\n  Unterabteilung",null,null,null,null,null,null,null,null,null,"  Durchführung wie geplant",null,null,null,null,"  (ja = J, nein = N)"]
[]
[null,null,null,null,null,null,null,null,null,null,null,"  Gemarkung usw.",null,null,null,{"$f":"IF(ISBLANK(F29),\" \",IF($P$27=\"J\",F29,IF($P$27=\"T\",F29,\" \")))","v":" "}]
[]
[null,"  Flächenermittlungsverfahren",null,null,null,null,null,null,null,null,null,"  Flächenermittlungsverfahren",null,null,null,{"$f":"IF(ISBLANK(F31),\" \",IF($P$27=\"J\",F31,IF($P$27=\"T\",F31,\" \")))","v":" "}]
[]
[]
[null,"  Nur bei Maßnahmen nach Nr. 5.1.1 oder Nr. 5.1.2 PKW-RL:",null,null,null,null,null,null,null,null,null,"  Nur bei Maßnahmen nach Nr. 5.1.1 oder Nr. 5.1.2 PKW-RL:"]
[]
[null,"  Fläche ges. Anpflanzung = a) + b) + c)\n  (Anpflanzung + Saat + Waldrand)",null,null,null,null,null,null,"  in ha",null,null,"  Fläche ges. Anpflanzung = a) + b) + c)\n  (Anpflanzung + Saat + Waldrand)",null,null,null,null,{"$f":"IF($P$27=\"J\",G36,\" \")","v":" "},null,"  in ha"]
[]
[]
[null,"  Flächenanteil nur des Nadelholzes\n  an der Aufforstung in ha",null,null,null,null,null,null,"  in ha",null,null,"  Flächenanteil nur des Nadelholzes\n  an der Aufforstung in ha",null,null,null,null,{"$f":"IF($P$27=\"J\",G39,\" \")","v":" "},null,"  in ha"]
[]
[]
[null,"  Flächenanteil nur des nicht-heimischen \n  Laubholzes an der Aufforstung in ha",null,null,null,null,null,null,"  in ha",null,null,"  Flächenanteil nur des nicht-heimischen \n  Laubholzes an der Aufforstung in ha",null,null,null,null,{"$f":"IF($P$27=\"J\",G42,\" \")","v":" "},null,"  in ha"]
[]
[]
[]
[null,{"$f":"IF(F19=\"\",\"\",\nIF($E$58+$E$61>0.2,\"NH und/oder nicht heimisches LH im SG dürfen höchstens 20 % betragen\",\"\"))","v":""}]
[null,{"$f":"IF(F19=\"x\",\"\",\nIF($E$58=\"\",\"\",\nIF($E$61=\"\",\"\",\nIF($E$58+$E$61>0.35,\"NH und/oder nicht heimisches LH im SG dürfen höchstens 35 % betragen\",\"\"))))","v":""}]
[]
[]
[null,"  Bei Aufforstungen: Empfohlener Waldentwicklungstyp"]
[null,"  nach dem Waldbaukonzept NRW - Ziffer …"]
[]
[null,"  Pflanzverfahren",null,null,null,null,null,null,null,null,null,"  Pflanzverfahren",null,null,{"$f":"IF(ISBLANK(E53),\" \",IF($P$27=\"J\",E53,\" \"))","v":" "}]
[]
[]
[null,"  a) Anpflanzung / Nachbesserung ohne Waldrand",null,null,null,null,null,null,null,null,null,"  a) Anpflanzung / Nachbesserung ohne Waldrand"]
[]
[null,"  Flächenanteil des\n  Nadelholzes:",null,null,{"$f":"IF(G39=\"\",\"\",G39/G36)","v":""},"   % der Gesamt-Pflanzung \n   (Anpflanzung, Saat und Waldrand)",null,null,null,null,null,"  Flächenanteil des\n  Nadelholzes:",null,null,{"$f":"IF(Q36=0,\"\",IF(Q39=0,\"\",IF($P$27=\"J\",Q39/Q36,\"\")))","v":""},"   % der Gesamt-Pflanzung \n   (Anpflanzung, Saat und Waldrand)"]
[]
[]
[null,"  Flächenanteil des nicht-\n  heimischen Laubholzes:","Fläche nicht-heimisches Laubholz",null,{"$f":"IF(G42=\"\",\"\",G42/G36)","v":""},"   % der Gesamt-Pflanzung \n   (Anpflanzung, Saat und Waldrand)",null,null,null,null,null,"  Flächenanteil des nicht-\n  heimischen Laubholzes:","Fläche nicht-heimisches Laubholz",null,{"$f":"IF(Q39=0,\"\",IF(Q42=0,\"\",IF($P$27=\"J\",Q42/Q39,\"\")))","v":""},"   % der Gesamt-Pflanzung \n   (Anpflanzung, Saat und Waldrand)"]
[]
[]
[null,"Kz.","Baumart",null,"Herk-Nr. *)",null,"Stück","EUR / St.","Summe EUR",null,null,"Kz.","Baumart",null,"Herk-Nr. *)",null,"Stück","EUR / St.","Summe EUR"]
[null,".",{"$f":"VLOOKUP($B65,$B$205:$O$208,2,FALSE)","v":"    "},null,null,null,null,{"$f":"IF($B65=\".\",\"\",\nIF($E$58>0.35,\n0,\nIF($E$58>0.2,\nVLOOKUP($B65,$B$205:$O$208,6,FALSE),\nIF($E$58<=0.2,\nVLOOKUP($B65,$B$205:$O$208,12,FALSE)\n))))","v":""},{"$f":"IF(ISNUMBER(H65),G65*H65,\" \")","v":" "},null,null,{"$f":"IF($P$27=\"J\",B65,\".\")","v":"."},{"$f":"IF($P$27=\"J\",C65,VLOOKUP($L65,$B$205:$O$208,2,FALSE))","v":"    "},null,{"$f":"IF($P$27=\"J\",E65,\"\")","v":""},null,{"$f":"IF($P$27=\"J\",G65,\"\")","v":""},{"$f":"IF($L65=\".\",\"\",\nIF($E$58>0.35,\n0,\nIF($E$58>0.2,\nVLOOKUP($B65,$B$205:$O$208,6,FALSE),\nIF($E$58<=0.2,\nVLOOKUP($B65,$B$205:$O$208,12,FALSE)\n))))","v":""},{"$f":"IF(ISNUMBER(R65),Q65*R65,\" \")","v":" "}]
[null,".","    ",null,null,null,null,"",{"$f":"IF(ISNUMBER(H66),G66*H66,\" \")","v":" "},null,null,".","    ",null,{"$f":"IF($P$27=\"J\",E66,\"\")","v":""},null,"","",{"$f":"IF(ISNUMBER(R66),Q66*R66,\" \")","v":" "}]
[null,".","    ",null,null,null,null,""," ",null,null,".","    ",null,"",null,"",""," "]
[null,".","    ",null,null,null,null,""," ",null,null,".","    ",null,"",null,"","",{"$f":"IF(ISNUMBER(R68),Q68*R68,\" \")","v":" "}]
[null,".","    ",null,null,null,null,""," ",null,null,".","    ",null,"",null,"","",{"$f":"IF(ISNUMBER(R69),Q69*R69,\" \")","v":" "}]
[null,".","    ",null,null,null,null,""," ",null,null,".","    ",null,"",null,"",""," "]
[null,".","    ",null,null,null,null,""," ",null,null,".","    ",null,"",null,"",""," "]
[]
[null,"  Förderbetrag für a) Anpflanzung: ",null,null,null,null,null,null,{"$f":"IF(SUM(I65:I71)=0,0,SUM(I65:I71))","v":0},null,null,"  Förderbetrag für a) Anpflanzung: ",null,null,null,null,null,null,{"$f":"IF(SUM(S65:S71)=0,0,SUM(S65:S71))","v":0}]
[]
["   *)  Hinweis:  Die weiteren für das Herkunftsgebiet empfohlenen Herkünfte"]
["       sowie die Ersatzherkünfte laut dem Erl. d. MULNV v. 03.02.2020 "]
["       dürfen alternativ verwendet werden."]
[]
[]
[null,"  b) Saat ohne Waldrand",null,null,null,null,null,null,null,null,null,{"$f":"B80","v":"  b) Saat ohne Waldrand"}]
[]
[null,"Saat",null,null,"Herk-Nr. *)","Fläche\n in ha","EUR / ha",null,"Summe EUR",null,null,"Saat",null,null,"Herk-Nr. *)","Fläche\n in ha","EUR / ha",null,"Summe EUR"]
[null,"Stieleiche",null,null,null,null,2700,null,{"$f":"G83*F83","v":0},null,null,"Stieleiche",null,null,{"$f":"IF($P$27=\"j\",E83,\"\")","v":""},"",2700,null,{"$f":"IF(P83=\"\",\"\",MIN(Q83*P83,I83))","v":""}]
[null,"Traubeneiche ",null,null,null,null,2700,null,{"$f":"G84*F84","v":0},null,null,"Traubeneiche ",null,null,"","",2700,null,{"$f":"IF(P84=\"\",\"\",MIN(Q84*P84,I84))","v":""}]
[null,"Bucheckern ",null,null,null,null,2520,null,0,null,null,"Bucheckern ",null,null,"","",2520,null,""]
[]
[null,"  Förderbetrag für b) Saat:",null,null,null,null,null,null,{"$f":"IF(SUM(I83:I85)=0,0,SUM(I83:I85))","v":0},null,null,"  Förderbetrag für b) Saat:",null,null,null,null,null,null,{"$f":"IF(SUM(S83:S85)=0,0,SUM(S83:S85))","v":0}]
[]
[]
[null,"  c) Waldrand",null,null,null,null,null,null,null,null,null,{"$f":"B90","v":"  c) Waldrand"}]
[]
[null,"   Pflicht bei Aufforstungen (ausgenommen Voranbau und Unterbau), \n   es sei denn, Lage, Flächengröße oder -ausformung lassen dies nicht zu.",null,null,null,null,null,null,null,null,null,"   Pflicht bei Aufforstungen (ausgenommen Voranbau und Unterbau), \n   es sei denn, Lage, Flächengröße oder -ausformung lassen dies nicht zu."]
[null,"   Waldrand - in laufenden Metern:",null,null,null,null,null,null,"lfd. M.",null,null,"   Waldrand - in laufenden Metern",null,null,null,null,{"$f":"IF($P$27=\"J\",G93,\"\")","v":""},null,"lfd. M."]
[]
[null,"   Tiefe des Waldrands:",null,null,null,null,null,null,"Meter",null,null,"   Tiefe des Waldrands:",null,null,null,null,{"$f":"IF($P$27=\"J\",G95,\"\")","v":""},null,"Meter"]
[]
[null,"   Verwendete Baum- und Straucharten bitte aufzählen\n   (Nadelholz und nicht heimisches Laubholz sind ausgeschlossen, RL-Nr. 2.3.2.3):"]
[]
[]
[]
[null,"   Falls kein Waldrand angelegt wird, bitte begründen, warum nicht:"]
[]
[]
[]
[null,"  Förderbetrag für c) Waldrand:",null,null,null,null,null,{"$f":"IF(G93=0,0,G93*2.2*G95/10)","v":0},null,null,null,{"$f":"B105","v":"  Förderbetrag für c) Waldrand:"},null,null,null,null,null,{"$f":"IF(H105=0,0,MIN(H105,Q95/10*Q93*2.2))","v":0}]
[]
[]
[null,"  Schutz der Aufforstungen",null,null,null,null,null,null,null,null,null,{"$f":"B108","v":"  Schutz der Aufforstungen"}]
[]
[null,"  Nr. 5.1.4 PKW-RL:",null,null,null,null,null,null,null,null,null,"  Nr. 5.1.4 PKW-RL:"]
[null,"  Einzelschutz / je Pflanze:",null,null,null,null,"  St.",{"$f":"IF(ISBLANK(E111),0,3.5*E111)","v":0},null,null,null,"  Einzelschutz / je Pflanze:",null,null,{"$f":"IF($P$27=\"J\",E111,\" \")","v":" "},null,"  St.",{"$f":"IF(O111=\" \",0,3.5*O111)","v":0}]
[]
[]
[null,"  Nr. 5.1.4 PKW-RL:",null,null,null,null,null,null,null,null,null,"  Nr. 5.1.4 PKW-RL:"]
[null,"  Wildschutzzaun in lfd. M.:",null,null,null,null,"lfdm.",{"$f":"IF(ISBLANK(E115),0,7.5*E115)","v":0},null,null,null,"  Wildschutzzaun in lfd. M.:",null,null,{"$f":"IF($P$27=\"J\",E115,\" \")","v":" "},null,"  lfdm.",{"$f":"IF(O115=\" \",0,7.5*O115)","v":0}]
[]
[]
[null,"  Gesamtförderung aus diesem BBl.:",null,null,null,null,null,{"$f":"I73+I87+H105+H111+H115","v":0},null,null,null,"  Gesamtförderung aus diesem BBl.:",null,null,null,null,null,{"$f":"S73+S87+R105+R111+R115","v":0}]
[]
[]
[]
[null,null,"Doppelförderung: \nIst das Vorhaben eine..."]
[]
[null,null,"  • Ausgleichsmaßnahme?",null,null,null,"  ja",null,"  nein"]
[]
[null,null,"  • Maßnahme im Rahmen eines Ökokontos?"]
[null,null,null,null,null,null,"  ja",null,"  nein"]
[]
[null,null,"  • FöNa-Maßnahme?",null,null,null,"  ja",null,"  nein"]
[]
[null,null,"  • Wurden Flächen zwecks Naturschutz dem Zuwendungs-\n    empfänger unentgeltlich übertragen?"]
[null,null,null,null,null,null,"  ja",null,"  nein"]
[]
[]
[]
[null,"  Nur bei FBG-Anträgen: beteiligte Waldbesitzer",null,null,null,null,null,null,"EUR",null,null,"  Nur bei FBG-Anträgen: beteiligte Waldbesitzer",null,null,null,null,null,null,"EUR"]
[]
[null,null,null,null,null,null,null,null,null,null,null,null,{"$f":"IF($P$27=\"J\",C138,\"\")","v":""},null,null,null,null,{"$f":"IF($P$27=\"J\",H138,\"\")","v":""}]
[null,null,null,null,null,null,null,null,null,null,null,null,"",null,null,null,null,""]
[null,null,null,null,null,null,null,null,null,null,null,null,"",null,null,null,null,""]
[null,null,null,null,null,null,null,null,null,null,null,null,"",null,null,null,null,""]
[null,null,null,null,null,null,null,null,null,null,null,null,"",null,null,null,null,""]
[null,null,null,null,null,null,null,null,null,null,null,null,"",null,null,null,null,""]
[]
[]
[]
[]
[null,"  II.  STELLUNGNAHME DER LEITUNG DES FBB",null,null,null,null,null,null,null,null,null,"  II.  STELLUNGNAHME DER LEITUNG DES FBB"]
[]
[null,null,"Fachliche Stellungnahme, \nfalls Planung nicht durch staatliche(n) Förster(in) erfolgte, \nNamen der forstfachlich qualifizierten Person angeben:",null,null,null,null,null,null,null,null,null,"Fachliche Stellungnahme (falls Abweichung)"]
[]
[]
[null,null,"Das beantragte Vorhaben wird von mir für forstfachlich notwendig und zweckmäßig gehalten.",null,null,null,null,null,null,null,null,null,{"$f":"\"(Soweit Abweichung:) Die Änderung des Vorhabens wird von \nmir für forstfachlich notwendig und zweckmäßig gehalten.\"","v":"(Soweit Abweichung:) Die Änderung des Vorhabens wird von \nmir für forstfachlich notwendig und zweckmäßig gehalten."}]
[]
[]
[null,null,"Ort, Datum",null,null,null,null,null,"Name und Unterschrift d. FBB",null,null,null,"Ort, Datum",null,null,null,null,null,"Name und Unterschrift d. FBB"]
[]
[]
[]
[null,"   III.  Prüfung der bewilligenden Stelle",null,null,null,null,null,null,null,null,null,"   III.  Prüfung der bewilligenden Stelle"]
[]
[]
[null,null,"Fragen zu Waldumbau"]
[]
[null,null,"  •  Bei Aufforstung mit nicht heimischem Laubholz: \n      Enthielt der Vorbestand (Nr. 5.3.1 i.V.m. Nre. 2.3.2.5 PKW-RL) \n      mind. 50 % an Nadelholz oder nicht heimischem Laubholz?"]
[]
[null,null,null,null,null,null,"  ja",null,"  nein"]
[null,null,"  •  Beträgt der Anteil von LH und nicht heimischem Laubholz an der Auf-\n      forstung max. 35 % der Fläche (20 % in Schutzgebieten nach Nr. 1.1.3) ? \n      (Ausnahme: Schutzgebietsverordnung legt niedrigere Anteile fest.\n      NH und nicht heimisches LH sind in Schutzgebieten nicht förderfähig)"]
[null,null,null,null,null,null,"  ja",null,"  nein"]
[null,null,"  • Bei Aufforstungen und Verjüngung: "]
[null,null,"     Wird bei der Maßnahme andere Bestands- \n     struktur als im Vorbestand gewählt (nach Nr. 5.3.1 i.V.m. Nr. 2.3.2.4 PKW-RL) ?"]
[]
[null,null,null,null,null,null,"  ja",null,"  nein"]
[]
[]
[null,null,"  • Ist es Ziel, veränderte Bestandsstruktur zu schaffen (Nr. 2.3.2.4 PKW-RL)?"]
[]
[null,null,null,null,null,null,"  ja",null,"  nein"]
[]
[null,null,"  • Bei Nachbesserungen:"]
[null,null,"     Sind bei der geförderten Kultur in den ersten 60 Monaten nach \n     Pflanzung oder Saat aufgrund natürlicher Ereignisse (wie Frost, \n     Trockenheit, Überschwemmung, nicht jedoch Wildverbiss, \n     Mäusefraß oder Pflegemängel) Ausfälle in Höhe von mehr als\n     30 % der Pflanzenzahl oder einem Hektar zusammenhängender \n     Fläche aufgetreten (Nr. 5.1.2 PKW-RL)?"]
[]
[]
[]
[]
[]
[null,null,null,null,null,null,"  ja",null,"  nein"]
[]
[null,null,"  • Wurde mit den ursprünglich geförderten Baumarten nachgebessert? \n     Wurde zulässige Abweichung begründet (Nr. 5.3.1 \n     i.V.m. Nr. 2.3.2.8 PKW-RL)?"]
[null,null,null,null,null,null,"  ja",null,"  nein"]
[]
[null,null,"  • Bei Anlage eines Waldrandes und bei Saat (Nr. 5.3.1 i.V.m. Nr. 2.3.2.7 \n     PKW-RL): Wurde Verbot, Laubholz und nicht heimisches Laubholz \n     einzubringen, beachtet?"]
[null,null,null,null,null,null,"  ja",null,"  nein"]
[]
[]
[null,"  Folgende Belege sind beigefügt:",null,null,null,null,null,null,null,null,null,"  Folgende Belege sind beigefügt:"]
[]
[null,null,"Karte  (Maßstab 1 : 25.000)"]
[]
[]
[]
[]
[]
[null,null,null,null,null,null,"21 bis 35 % Nadelholzanteil (Fläche)",null,null,null,null,null,"0 bis 20 % Nadelholzanteil (Fläche)"]
[null,"A","Stiel-/Traubeneiche",null,null,null,1.5,null,null,null,null,null,1.8]
[null,"B","Rotbuche",null,null,null,1.4,null,null,null,null,null,1.7]
[null,"C","bitte LH-Baumart angeben",null,null,null,1.6,null,null,null,null,null,2]
[null,".","    ",null," "," "," "," "," "," "," "," "," "," "," "," "]
[null,".","Saat",null,null,null,"EUR / ha",null,null,null,null,null,"in den Zeilen 83 bis 85"]
[null,".","Stiel- und Traubeneiche ",null,null,null,2700,null,null,null,null,null,"berücksichtigt, keine"]
[null,".","Buche",null,null,null,2520,null,null,null,null,null,"Formel mit VERWEIS nötig"]